bitfinex/quotes_SOLUSD_20250604
["timestamp","ask_amount","ask_price","bid_price","bid_amount"]
[1749064799136,0.3875,155.62,155.61,49.66]
[1749064801444,16.29617626,155.62,155.61,49.66]
[1749064806916,16.29617626,155.62,155.61,10.26]
[1749064807117,16.5804994,155.62,155.61,10.26]
[1749064807434,21.88531609,155.62,155.61,10.26]
[1749064807641,21.88531609,155.62,155.61,49.66]
[1749064807849,18.2014994,155.62,155.61,49.66]
[1749064808414,0.67182314,155.62,155.61,49.66]
[1749064808630,16.5804994,155.62,155.61,49.66]
[1749064808817,16.29617626,155.62,155.61,49.66]
[1749064810447,0.3875,155.62,155.61,49.66]
[1749064810617,16.29617626,155.62,155.61,49.66]
[1749064815936,0.3875,155.62,155.61,49.66]
[1749064817441,16.29617626,155.62,155.61,49.66]
[1749064826045,16.5804994,155.62,155.61,10.26]
[1749064826245,20.26754736,155.62,155.61,10.26]
[1749064826445,16.5804994,155.62,155.61,49.66]
[1749064826956,16.29617626,155.62,155.61,49.66]
[1749064837254,10.52360494,155.62,155.61,49.66]
[1749064843059,0.3875,155.62,155.61,49.66]
[1749064843261,10.52360494,155.62,155.61,49.66]
[1749064844555,0.3875,155.62,155.61,49.66]
[1749064847282,0.3875,155.62,155.61,59.79610494]
[1749064849055,0.3875,155.62,155.61,49.66]
[1749064857184,0.3875,155.62,155.61,10.26]
[1749064857386,10.52360494,155.62,155.61,10.26]
[1749064857594,10.52360494,155.62,155.61,49.64]
[1749064858194,0.3875,155.62,155.61,49.64]
[1749064858559,10.52360494,155.62,155.61,49.64]
[1749064860564,10.52360494,155.62,155.61,10.26]
[1749064860766,10.52360494,155.62,155.61,49.64]
[1749064865277,10.52360494,155.62,155.61,10.26]
[1749064865494,10.52360494,155.62,155.61,49.64]
[1749064875092,10.52360494,155.62,155.61,10.26]
[1749064875297,14.49635333,155.62,155.61,10.26]
[1749064875604,39.57191145,155.62,155.61,10.26]
[1749064875777,33.14600219,155.62,155.61,10.26]
[1749064876103,33.14600219,155.62,155.61,49.64]
[1749064876312,33.14600219,155.62,155.61,10.26]
[1749064876478,33.14600219,155.62,155.61,49.64]
[1749064877302,26.0,155.6,155.59,10.24]
[1749064877504,26.0,155.6,155.52,62.96]
[1749064877505,76.96484784,155.6,155.58,10.24]
[1749064877694,158.23610494,155.59,155.57,10.24]
[1749064877892,158.23610494,155.58,155.57,10.24]
[1749064878296,148.1,155.58,155.57,49.62]
[1749064878440,158.23610494,155.58,155.57,49.62]
[1749064880750,6.42536441,155.64,155.57,49.62]
[1749064880751,148.1,155.67,155.57,59.75610494]
[1749064880951,148.1,155.66,155.59,10.13610494]
[1749064881150,148.1,155.66,155.6,39.44]
[1749064881151,10.13610494,155.64,155.6,39.44]
[1749064881448,148.1,155.66,155.6,39.44]
[1749064881740,10.13610494,155.64,155.6,39.44]
[1749064883340,15.83291012,155.64,155.6,39.44]
[1749064886129,15.83291012,155.64,155.6,55.27291012]
[1749064886332,15.83291012,155.65,155.6,55.27291012]
[1749064886640,15.83291012,155.65,155.61,15.83291012]
[1749064886842,15.83291012,155.65,155.62,10.28]
[1749064887057,15.83291012,155.65,155.63,39.44]
[1749064889360,15.83291012,155.64,155.63,39.44]
[1749064893964,16.22041012,155.64,155.63,39.44]
[1749064895874,16.22041012,155.64,155.63,39.38]
[1749064902387,0.3875,155.64,155.63,39.38]
[1749064902884,16.22041012,155.64,155.63,39.38]
[1749064903257,10.51963378,155.64,155.63,39.38]
[1749064906481,0.3875,155.64,155.63,39.38]
[1749064906663,10.51963378,155.64,155.63,39.38]
[1749064908313,0.3875,155.64,155.63,39.38]
[1749064913325,0.3875,155.64,155.63,49.51213378]
[1749064914883,0.3875,155.64,155.63,52.63970084]
[1749064918275,0.3875,155.64,155.63,52.78186241]
[1749064921014,0.3875,155.64,155.63,52.92402398]
[1749064924104,0.3875,155.64,155.63,97.71583441]
[1749064924305,4.59831023,155.76,155.63,71.85799598]
[1749064924527,13.81104789,155.75,155.7,10.13213378]
[1749064924819,13.81104789,155.75,155.71,59.71213378]
[1749064924820,10.13213378,155.75,155.71,59.71213378]
[1749064925012,10.13213378,155.76,155.72,10.13213378]
[1749064925208,15.80802247,155.76,155.72,15.80802247]
[1749064925605,15.80802247,155.75,155.71,65.38802247]
[1749064925809,15.80802247,155.75,155.71,49.58]
[1749064926525,15.80802247,155.75,155.71,65.38802247]
[1749064928523,8.2271,155.77,155.71,49.58]
[1749064928826,15.80802247,155.75,155.71,49.58]
[1749064929999,15.80802247,155.76,155.71,65.38802247]
[1749064930200,15.80802247,155.76,155.72,15.80802247]
[1749064930412,17.39772247,155.77,155.72,15.80802247]
[1749064930600,15.80802247,155.76,155.72,15.80802247]
[1749064931503,15.80802247,155.78,155.74,15.80802247]
[1749064931702,15.80802247,155.78,155.75,39.34]
[1749064931928,15.80802247,155.78,155.76,10.22]
[1749064932524,0.28432314,155.8,155.76,10.22]
[1749064932702,15.80802247,155.78,155.76,10.22]
[1749064932902,15.80802247,155.77,155.76,10.22]
[1749064934834,34.74199447,155.77,155.76,10.22]
[1749064935009,34.74199447,155.77,155.76,49.56]
[1749064935413,34.74199447,155.77,155.76,10.22]
[1749064935620,15.80802247,155.77,155.76,49.56]
[1749064936541,34.74199447,155.77,155.76,49.56]
[1749064942359,18.64964886,155.73,155.69,36.94]
[1749064942559,0.56864628,155.72,155.71,10.22]
[1749064942842,18.933972,155.69,155.68,10.22]
[1749064943009,34.74199447,155.69,155.67,10.22]
[1749064943203,50.55001694,155.68,155.67,10.22]
[1749064943406,34.74199447,155.68,155.67,49.56]
[1749064943910,16.09234561,155.68,155.67,49.56]
[1749064944437,16.09234561,155.68,155.67,10.22]
[1749064944631,16.09234561,155.68,155.67,49.56]
[1749064946004,16.09234561,155.68,155.67,10.22]
[1749064946206,16.09234561,155.68,155.67,49.56]
[1749064947939,50.55001694,155.68,155.67,10.22]
[1749064948111,50.55001694,155.68,155.67,49.56]
[1749064948729,50.55001694,155.68,155.67,10.22]
[1749064948931,50.55001694,155.68,155.67,49.56]
[1749064950543,50.55001694,155.68,155.67,49.58]
[1749064955354,34.74199447,155.68,155.67,49.58]
[1749064956449,15.80802247,155.68,155.67,49.58]
[1749064956651,26.28432314,155.7,155.67,49.58]
[1749064956652,26.0,155.7,155.67,49.58]
[1749064956838,15.80802247,155.68,155.67,49.58]
[1749064967763,34.74199447,155.68,155.67,10.22]
[1749064967949,50.55001694,155.68,155.67,49.58]
[1749064968273,34.74199447,155.68,155.67,49.58]
[1749064976855,50.83434008,155.68,155.67,10.22]
[1749064978190,0.28432314,155.66,155.65,39.36]
[1749064978681,34.74199447,155.66,155.65,39.36]
[1749064981874,34.74199447,155.66,155.63,10.22]
[1749064981875,0.28432314,155.64,155.63,10.22]
[1749064982071,34.74199447,155.64,155.63,10.22]
[1749064982270,34.74199447,155.64,155.63,49.58]
[1749064982872,34.74199447,155.64,155.63,10.22]
[1749064983071,34.74199447,155.64,155.63,49.58]
[1749064984082,15.80802247,155.64,155.63,49.58]
[1749064984596,16.09234561,155.64,155.63,49.58]
[1749064985178,10.41989481,155.64,155.63,49.58]
[1749064988086,26.0,155.67,155.63,49.58]
[1749064988297,10.13557167,155.64,155.63,49.58]
[1749064988708,10.13557167,155.65,155.63,49.58]
[1749064988883,10.13557167,155.64,155.63,49.58]
[1749064990884,59.47625868,155.68,155.63,49.58]
[1749064990885,10.13557167,155.65,155.63,49.58]
[1749064991086,10.13557167,155.66,155.63,49.58]
[1749064991285,10.13557167,155.69,155.64,10.13557167]
[1749064991599,10.13557167,155.69,155.65,39.36]
[1749064991993,10.13557167,155.68,155.65,39.36]
[1749064992320,10.13557167,155.66,155.65,39.36]
[1749064992683,18.933972,155.69,155.65,39.36]
[1749064992888,0.28432314,155.72,155.65,39.36]
[1749064992889,10.13557167,155.68,155.65,39.36]
[1749064993288,15.82473384,155.68,155.65,39.36]
[1749064999498,15.82473384,155.69,155.65,39.36]
[1749065000591,15.82473384,155.68,155.65,39.36]
[1749065007595,15.82473384,155.67,155.65,39.36]
[1749065007813,15.82473384,155.67,155.66,10.22]
[1749065008394,15.82473384,155.68,155.66,10.22]
[1749065011021,15.82473384,155.67,155.66,10.22]
[1749065011206,15.82473384,155.67,155.66,49.56]
[1749065011718,15.82473384,155.67,155.66,10.22]
[1749065011914,15.82473384,155.67,155.66,49.56]
[1749065015324,10.13127782,155.67,155.66,49.56]
[1749065016025,0.28432314,155.68,155.66,49.56]
[1749065016220,10.13127782,155.67,155.66,49.56]
[1749065021028,0.28432314,155.68,155.66,49.56]
[1749065021323,10.13127782,155.67,155.66,49.56]
[1749065022128,18.64964886,155.69,155.66,49.56]
[1749065022129,10.13127782,155.68,155.66,49.56]
[1749065026126,10.13127782,155.67,155.66,49.56]
[1749065031817,10.13127782,155.67,155.66,10.22]
[1749065032010,10.13127782,155.67,155.66,49.56]
[1749065046148,10.51707782,155.67,155.66,49.56]
[1749065048323,29.45104982,155.67,155.66,10.22]
[1749065048529,33.14030536,155.67,155.66,10.22]
[1749065048746,33.14030536,155.67,155.66,49.54]
[1749065049934,33.14067558,155.67,155.66,49.54]
[1749065050333,33.14067558,155.67,155.66,10.22]
[1749065050530,33.14067558,155.67,155.59,3.22569408]
[1749065050531,44.933972,155.64,155.63,10.2]
[1749065050733,58.75487558,155.64,155.63,39.32]
[1749065053232,55.06524982,155.64,155.63,39.32]
[1749065054145,55.06524982,155.64,155.62,10.2]
[1749065054146,18.933972,155.63,155.62,10.2]
[1749065054338,29.06524982,155.63,155.62,10.2]
[1749065054667,29.06524982,155.63,155.62,49.52]
[1749065056444,7.24472314,155.67,155.62,49.52]
[1749065056757,10.13127782,155.63,155.62,49.52]
[1749065057742,29.06524982,155.63,155.62,49.52]
[1749065060255,10.13127782,155.63,155.62,49.52]
[1749065060939,10.13127782,155.63,155.62,10.2]
[1749065061270,10.13127782,155.63,155.62,49.52]
[1749065063073,29.06524982,155.63,155.62,10.2]
[1749065063279,29.06524982,155.63,155.62,49.52]
[1749065067061,29.06524982,155.63,155.62,10.2]
[1749065067270,29.06524982,155.63,155.62,49.52]
[1749065067667,18.933972,155.63,155.62,49.52]
[1749065067867,29.06524982,155.63,155.62,49.52]
[1749065069185,29.06524982,155.63,155.62,10.2]
[1749065069353,29.06524982,155.63,155.54,1.5235]
[1749065069354,26.0,155.6,155.54,1.5235]
[1749065069554,10.13127782,155.55,155.53,36.96]
[1749065069760,0.28432314,155.58,155.54,10.22]
[1749065069949,10.13127782,155.55,155.54,49.54]
[1749065071580,10.13127782,155.55,155.54,10.22]
[1749065071879,10.13127782,155.55,155.54,49.54]
[1749065079175,10.51707782,155.55,155.54,49.54]
[1749065079585,10.51707782,155.55,155.54,10.22]
[1749065079793,29.45104982,155.55,155.54,49.56]
[1749065081589,29.45104982,155.55,155.54,10.22]
[1749065081894,29.45104982,155.55,155.54,49.56]
[1749065084592,10.51707782,155.55,155.54,49.56]
[1749065084995,0.3858,155.55,155.54,49.56]
[1749065100582,0.3858,155.55,155.54,65.40793685]
[1749065102795,0.3858,155.55,155.54,49.56]
[1749065104181,0.3858,155.55,155.54,65.40793685]
[1749065108989,0.3858,155.55,155.54,10.22]
[1749065109189,0.3858,155.55,155.54,49.54]
[1749065110612,16.23373685,155.55,155.54,10.22]
[1749065111111,16.23373685,155.55,155.54,49.54]
[1749065111602,16.23373685,155.55,155.54,10.22]
[1749065111790,16.23373685,155.55,155.54,49.54]
[1749065112808,16.23373685,155.55,155.54,10.22]
[1749065113520,0.3858,155.55,155.54,49.54]
[1749065114316,16.23373685,155.55,155.54,49.54]
[1749065114519,0.3858,155.55,155.54,49.54]
[1749065114895,16.23373685,155.55,155.54,49.54]
[1749065115300,0.3858,155.55,155.54,49.54]
[1749065115907,16.23373685,155.55,155.54,49.54]
[1749065121016,0.3858,155.55,155.54,49.54]
[1749065122405,0.3858,155.55,155.54,65.38793685]
[1749065123012,0.3858,155.55,155.54,65.53009842]
[1749065124727,0.3858,155.55,155.54,65.67225999]
[1749065125125,15.84793685,155.65,155.56,0.28432314]
[1749065125303,19.5325828,155.64,155.59,15.84793685]
[1749065125508,15.84793685,155.63,155.6,49.52]
[1749065125707,15.84793685,155.63,155.61,39.32]
[1749065129630,15.84793685,155.62,155.61,39.32]
[1749065130128,16.13225999,155.62,155.6,10.2]
[1749065130303,18.64964886,155.63,155.6,10.2]
[1749065130304,60.78190885,155.61,155.6,10.2]
[1749065130505,60.78190885,155.61,155.6,49.52]
[1749065130814,62.41050885,155.61,155.6,10.2]
[1749065131129,66.09471792,155.61,155.6,10.2]
[1749065131623,50.24678107,155.61,155.6,10.2]
[1749065131806,62.41050885,155.61,155.6,10.2]
[1749065132414,62.41050885,155.61,155.6,49.52]
[1749065134727,66.09504571,155.61,155.6,49.52]
[1749065137238,62.41050885,155.61,155.6,49.52]
[1749065139240,78.2584457,155.61,155.6,49.52]
[1749065139443,82.22723819,155.61,155.6,10.2]
[1749065139742,0.28432314,155.6,155.58,39.32]
[1749065139931,18.933972,155.58,155.57,39.32]
[1749065140238,34.78190885,155.58,155.56,10.2]
[1749065140418,34.78190885,155.57,155.56,10.2]
[1749065140816,34.78190885,155.57,155.56,49.52]
[1749065145526,15.84793685,155.57,155.56,49.52]
[1749065148352,34.78190885,155.57,155.56,49.52]
[1749065148726,34.78190885,155.57,155.56,10.2]
[1749065148927,34.78190885,155.57,155.56,49.52]
[1749065150463,15.84793685,155.57,155.56,49.52]
[1749065151522,34.78190885,155.57,155.56,49.52]
[1749065151743,33.78190885,155.57,155.56,10.2]
[1749065151946,33.78190885,155.57,155.56,49.52]
[1749065152335,18.933972,155.57,155.56,49.52]
[1749065152542,34.78190885,155.57,155.56,49.52]
[1749065152760,34.78190885,155.57,155.56,10.2]
[1749065152940,34.78190885,155.57,155.56,49.52]
[1749065159681,15.84793685,155.57,155.56,49.52]
[1749065160355,18.64964886,155.6,155.56,49.52]
[1749065160534,15.84793685,155.58,155.56,49.52]
[1749065161066,15.84793685,155.57,155.56,49.52]
[1749065165043,15.84793685,155.58,155.56,49.52]
[1749065166169,15.84793685,155.57,155.56,10.2]
[1749065166348,15.84793685,155.57,155.56,49.52]
[1749065167164,15.84793685,155.57,155.56,10.2]
[1749065167343,15.84793685,155.57,155.56,49.5]
[1749065179061,34.78190885,155.57,155.56,49.5]
[1749065182566,38.45717392,155.57,155.56,49.5]
[1749065182774,34.78190885,155.57,155.56,49.5]
[1749065183282,38.45773166,155.57,155.56,49.5]
[1749065183487,34.78190885,155.57,155.56,49.5]
[1749065183675,38.45755182,155.57,155.56,49.5]
[1749065185491,44.88552636,155.57,155.56,49.5]
[1749065186588,44.88552636,155.57,155.56,10.2]
[1749065186790,44.88552636,155.57,155.56,49.5]
[1749065187772,45.1698495,155.57,155.56,10.2]
[1749065188397,44.64964886,155.54,155.53,10.18]
[1749065188704,60.78190885,155.54,155.53,39.3]
[1749065193687,44.64964886,155.54,155.53,39.3]
[1749065193887,15.84793685,155.54,155.53,39.3]
[1749065195879,15.84793685,155.55,155.53,39.3]
[1749065197583,15.84793685,155.54,155.53,39.3]
[1749065207101,15.84793685,155.55,155.53,39.3]
[1749065208509,15.84793685,155.54,155.53,39.3]
[1749065210993,26.0,155.56,155.53,39.3]
[1749065211200,15.84793685,155.54,155.53,39.3]
[1749065216995,15.84793685,155.54,155.53,49.48]
[1749065217330,15.84793685,155.57,155.53,49.48]
[1749065217622,15.84793685,155.57,155.53,65.32793685]
[1749065218317,15.84793685,155.57,155.53,49.48]
[1749065221295,163.94793685,155.57,155.53,49.48]
[1749065222791,15.84793685,155.56,155.53,49.48]
[1749065223388,163.94793685,155.57,155.53,49.48]
[1749065226199,15.84793685,155.57,155.53,65.32793685]
[1749065226407,26.0,155.6,155.54,15.84793685]
[1749065226602,15.84793685,155.59,155.55,39.28]
[1749065228111,26.0,155.6,155.56,15.84793685]
[1749065228418,41.84793685,155.6,155.56,15.84793685]
[1749065229123,41.84793685,155.6,155.55,55.12793685]
[1749065230099,15.84793685,155.59,155.55,55.12793685]
[1749065233198,15.84793685,155.58,155.53,47.16]
[1749065233401,15.84793685,155.54,155.53,47.16]
[1749065233637,15.84793685,155.54,155.53,36.98]
[1749065233924,15.84793685,155.54,155.53,86.44]
[1749065238522,15.84793685,155.54,155.53,47.16]
[1749065238714,15.84793685,155.54,155.53,86.44]
[1749065239723,15.84793685,155.54,155.53,49.46]
[1749065249236,148.1,155.56,155.53,49.46]
[1749065249537,15.84793685,155.54,155.53,49.46]
[1749065255552,15.84793685,155.55,155.53,49.46]
[1749065256027,15.84793685,155.54,155.53,49.46]
[1749065262458,15.84793685,155.55,155.53,49.46]
[1749065262658,15.84793685,155.54,155.53,49.46]
[1749065262961,163.94793685,155.54,155.53,49.46]
[1749065263349,158.24650464,155.54,155.53,49.46]
[1749065269239,158.24650464,155.54,155.53,10.18]
[1749065269445,158.24650464,155.54,155.53,49.44]
[1749065274258,158.24650464,155.54,155.53,10.18]
[1749065274463,158.24650464,155.54,155.53,49.44]
[1749065276271,164.67571899,155.54,155.53,10.18]
[1749065276442,158.24650464,155.54,155.53,49.44]
[1749065276645,158.24650464,155.54,155.53,10.18]
[1749065276856,158.24650464,155.54,155.53,49.44]
[1749065277052,158.24650464,155.54,155.53,10.18]
[1749065277237,158.24650464,155.54,155.53,49.44]
[1749065277443,161.91941919,155.54,155.53,49.44]
[1749065279059,161.91941919,155.54,155.46,3.24069863]
[1749065279257,10.14650464,155.51,155.47,59.56650464]
[1749065280983,10.14650464,155.52,155.48,39.26]
[1749065281479,10.14650464,155.52,155.47,10.16]
[1749065281649,10.14650464,155.51,155.48,39.26]
[1749065282281,10.14650464,155.51,155.47,20.30650464]
[1749065282485,10.14650464,155.51,155.48,39.26]
[1749065283160,10.14650464,155.49,155.47,10.16]
[1749065283347,10.14650464,155.49,155.48,39.26]
[1749065283547,10.14650464,155.5,155.48,39.26]
[1749065283783,10.14650464,155.5,155.47,10.16]
[1749065283946,10.14650464,155.5,155.49,39.26]
[1749065284889,10.14650464,155.5,155.47,10.16]
[1749065285185,10.14650464,155.5,155.49,39.26]
[1749065285959,10.14650464,155.51,155.49,39.26]
[1749065286177,158.24650464,155.52,155.49,39.26]
[1749065286475,10.14650464,155.51,155.5,10.16]
[1749065287255,10.14650464,155.51,155.5,49.42]
[1749065288389,158.24650464,155.52,155.5,49.42]
[1749065291980,148.1,155.52,155.5,59.56650464]
[1749065292182,148.1,155.55,155.5,59.56650464]
[1749065292377,148.1,155.55,155.51,10.14650464]
[1749065292601,158.24650464,155.55,155.52,39.26]
[1749065294086,10.14650464,155.54,155.52,39.26]
[1749065294881,10.14650464,155.53,155.52,39.26]
[1749065298095,10.14650464,155.53,155.5,10.16]
[1749065298296,148.1,155.53,155.52,39.26]
[1749065298611,158.24650464,155.53,155.52,39.26]
[1749065299179,163.95960309,155.53,155.52,39.26]
[1749065300412,163.95960309,155.53,155.5,10.16]
[1749065300570,148.1,155.53,155.52,39.26]
[1749065300772,163.95960309,155.53,155.52,39.26]
[1749065301579,164.24392623,155.53,155.52,39.26]
[1749065302174,164.24392623,155.53,155.5,10.16]
[1749065302472,148.38432314,155.53,155.52,39.26]
[1749065303673,164.24392623,155.53,155.52,39.26]
[1749065304705,148.1,155.53,155.52,39.26]
[1749065308278,15.85960309,155.54,155.52,39.26]
[1749065308480,15.85960309,155.55,155.52,39.26]
[1749065308893,15.85960309,155.54,155.52,39.26]
[1749065309095,148.1,155.56,155.52,39.26]
[1749065309096,15.85960309,155.53,155.52,39.26]
[1749065309391,15.85960309,155.54,155.52,39.3]
[1749065309587,15.85960309,155.54,155.53,39.3]
[1749065310189,148.1,155.56,155.53,39.3]
[1749065310398,15.85960309,155.54,155.53,39.3]
[1749065312691,15.85960309,155.54,155.53,49.46]
[1749065315911,60.7527603,155.54,155.53,10.16]
[1749065316512,38.46394286,155.54,155.53,10.16]
[1749065320095,26.0,155.51,155.47,10.18]
[1749065320296,15.85960309,155.48,155.47,10.18]
[1749065320486,15.85960309,155.48,155.47,49.46]
[1749065322099,15.85960309,155.48,155.47,49.44]
[1749065325333,15.85960309,155.48,155.47,10.18]
[1749065325633,15.85960309,155.48,155.47,49.44]
[1749065325811,15.85960309,155.48,155.47,10.18]
[1749065326311,15.85960309,155.48,155.47,49.44]
[1749065327213,15.85960309,155.48,155.47,10.18]
[1749065327521,15.85960309,155.48,155.47,49.44]
[1749065328309,34.93573666,155.48,155.47,10.18]
[1749065328629,41.36743205,155.48,155.47,10.18]
[1749065328928,26.0,155.44,155.42,47.16]
[1749065329104,15.85960309,155.43,155.42,47.16]
[1749065329519,16.14392623,155.43,155.42,47.16]
[1749065329718,16.14392623,155.43,155.42,86.42]
[1749065330328,16.14392623,155.43,155.42,10.18]
[1749065330525,16.14392623,155.43,155.42,49.44]
[1749065331333,16.14392623,155.43,155.42,10.18]
[1749065332610,16.14392623,155.43,155.42,49.44]
[1749065333824,164.24392623,155.43,155.42,49.44]
[1749065335521,163.95960309,155.43,155.42,49.44]
[1749065339046,148.1,155.43,155.42,49.44]
[1749065339747,15.85960309,155.45,155.42,49.44]
[1749065340927,15.85960309,155.44,155.42,49.44]
[1749065342337,15.85960309,155.45,155.42,49.44]
[1749065346132,15.85960309,155.44,155.42,49.44]
[1749065346332,15.85960309,155.43,155.42,49.44]
[1749065346535,148.1,155.47,155.42,49.44]
[1749065346738,15.85960309,155.44,155.42,49.44]
[1749065347346,15.85960309,155.43,155.42,10.18]
[1749065347556,15.85960309,155.43,155.42,49.46]
[1749065349742,148.1,155.44,155.42,49.46]
[1749065349943,15.85960309,155.43,155.42,49.46]
[1749065352134,148.1,155.44,155.42,49.46]
[1749065352334,15.85960309,155.43,155.42,49.46]
[1749065359060,163.95960309,155.44,155.42,49.46]
[1749065359935,15.85960309,155.43,155.42,49.46]
[1749065375158,15.85960309,155.43,155.42,10.18]
[1749065375363,15.85960309,155.43,155.42,49.46]
[1749065381273,10.16167659,155.43,155.42,49.46]
[1749065392398,10.16167659,155.43,155.42,10.18]
[1749065392571,13.83638254,155.43,155.42,49.46]
[1749065396195,13.83704631,155.43,155.42,49.46]
[1749065396774,10.16167659,155.43,155.42,49.46]
[1749065397190,13.83710178,155.43,155.42,49.46]
[1749065398099,10.16167659,155.43,155.42,49.46]
[1749065398287,13.83706035,155.43,155.42,10.18]
[1749065398487,13.83706035,155.43,155.42,49.46]
[1749065398681,3.67538376,155.43,155.42,49.46]
[1749065398886,13.83706035,155.43,155.42,49.46]
[1749065402707,13.83706035,155.43,155.42,10.18]
[1749065402708,39.20479674,155.43,155.42,10.18]
[1749065402878,0.28432314,155.42,155.41,39.28]
[1749065403078,14.12138349,155.42,155.41,39.28]
[1749065403582,14.12138349,155.42,155.39,10.16]
[1749065403583,148.1,155.41,155.39,10.16]
[1749065403831,13.83007308,155.4,155.39,10.16]
[1749065403988,13.83007308,155.4,155.39,49.44]
[1749065404384,10.16167659,155.4,155.39,49.44]
[1749065404591,13.82850921,155.4,155.39,10.16]
[1749065404799,13.82850921,155.4,155.39,49.44]
[1749065405510,148.1,155.39,155.36,10.16]
[1749065405681,3.66494859,155.38,155.37,39.28]
[1749065405881,13.82662518,155.38,155.37,39.28]
[1749065406282,13.82662518,155.38,155.36,10.16]
[1749065406501,87.19150614,155.37,155.36,39.28]
[1749065406716,80.75525719,155.37,155.34,37.0]
[1749065406913,10.16167659,155.35,155.34,37.0]
[1749065407517,148.1,155.36,155.34,37.0]
[1749065407693,10.16167659,155.35,155.34,37.0]
[1749065407892,148.1,155.36,155.34,76.28]
[1749065408094,163.99056683,155.36,155.34,76.28]
[1749065408482,15.89056683,155.38,155.34,92.17056683]
[1749065409189,15.89056683,155.38,155.34,76.28]
[1749065410712,15.89056683,155.37,155.34,76.28]
[1749065411005,15.89056683,155.37,155.34,39.28]
[1749065416007,15.89056683,155.36,155.34,39.28]
[1749065417796,15.89056683,155.35,155.34,39.28]
[1749065419523,15.89056683,155.35,155.3,37.16216157]
[1749065419723,15.89056683,155.33,155.31,10.16]
[1749065420018,15.89056683,155.32,155.31,10.16]
[1749065420225,0.28432314,155.36,155.31,10.16]
[1749065420394,148.1,155.35,155.32,39.34]
[1749065420593,15.89056683,155.34,155.31,10.16]
[1749065420814,15.89056683,155.34,155.33,39.44]
[1749065421013,148.1,155.35,155.33,39.44]
[1749065421226,15.89056683,155.34,155.33,39.44]
[1749065422608,163.99056683,155.35,155.33,39.44]
[1749065424105,148.1,155.35,155.33,39.44]
[1749065426556,148.1,155.39,155.34,0.14216157]
[1749065426702,163.99056683,155.39,155.35,39.44]
[1749065426900,163.99056683,155.39,155.36,10.16]
[1749065427155,15.89056683,155.38,155.37,39.44]
[1749065433245,15.89056683,155.38,155.36,10.16]
[1749065433425,148.1,155.39,155.37,39.42]
[1749065434646,15.89056683,155.38,155.37,39.42]
[1749065434805,148.1,155.39,155.37,39.42]
[1749065435005,15.89056683,155.38,155.37,39.42]
[1749065435540,148.1,155.39,155.37,39.42]
[1749065435719,15.89056683,155.38,155.37,39.42]
[1749065437435,148.1,155.39,155.37,39.42]
[1749065438312,163.99056683,155.39,155.37,39.42]
[1749065439611,148.1,155.39,155.37,39.42]
[1749065439819,15.89056683,155.41,155.37,55.31056683]
[1749065441245,15.89056683,155.42,155.37,55.31056683]
[1749065441823,15.89056683,155.43,155.39,15.89056683]
[1749065442029,15.89056683,155.43,155.38,0.14216157]
[1749065442030,15.89056683,155.43,155.4,39.42]
[1749065442349,15.89056683,155.42,155.41,10.22]
[1749065442645,26.0,155.44,155.41,10.22]
[1749065442828,148.1,155.48,155.42,39.42]
[1749065443031,15.89056683,155.45,155.42,39.42]
[1749065445355,15.89056683,155.46,155.43,0.14216157]
[1749065445555,174.1,155.48,155.44,39.42]
[1749065445751,15.89056683,155.47,155.44,39.42]